BODY,BODY NAME,DATE,TRANSACTION NUMBER, AMOUNT ,SUPPLIER NAME,SUPPLIER ID,EXPENSE AREA,EXPENSE TYPE,EXPENSE CODE
http://statistics.data.gov.uk/id/local-authority/12UE,Huntingdonshire District Council,03/06/2010,59505,"2,850.00",Elephant & Castle Freehouse & Motel,CR401969,Accommodation For Homeless,Bed & Breakfast Payment,818
http://statistics.data.gov.uk/id/local-authority/12UE,Huntingdonshire District Council,10/06/2010,59967,"3,250.00",Elephant & Castle Freehouse & Motel,CR401969,Accommodation For Homeless,Bed & Breakfast Payment,818
http://statistics.data.gov.uk/id/local-authority/12UE,Huntingdonshire District Council,17/06/2010,60668,"3,100.00",Elephant & Castle Freehouse & Motel,CR401969,Accommodation For Homeless,Bed & Breakfast Payment,818
http://statistics.data.gov.uk/id/local-authority/12UE,Huntingdonshire District Council,24/06/2010,61034,"3,750.00",Elephant & Castle Freehouse & Motel,CR401969,Accommodation For Homeless,Bed & Breakfast Payment,818
http://statistics.data.gov.uk/id/local-authority/12UE,Huntingdonshire District Council,17/06/2010,60123,"1,846.19",King Street Housing Society,CR409301,Accommodation For Homeless,Management Charge,733
http://statistics.data.gov.uk/id/local-authority/12UE,Huntingdonshire District Council,17/06/2010,60124,"1,024.63",King Street Housing Society,CR409301,Accommodation For Homeless,Management Charge,733
http://statistics.data.gov.uk/id/local-authority/12UE,Huntingdonshire District Council,17/06/2010,59113,"1,410.00",Aea Technology Plc,CR478072,Air Quality,Equipment Maintenance,511
http://statistics.data.gov.uk/id/local-authority/12UE,Huntingdonshire District Council,03/06/2010,57935,"1,233.75",Chartered Institute Of Environmental Health,CR002987,Air Quality,Corporate Subscriptions,754
http://statistics.data.gov.uk/id/local-authority/12UE,Huntingdonshire District Council,24/06/2010,59941,780.8,International Zoo Veterinary Group,CR477390,Animal Welfare,Vets,760
http://statistics.data.gov.uk/id/local-authority/12UE,Huntingdonshire District Council,03/06/2010,57936,"2,720.13",Britten Sinfonia,CR410642,Arts Development,Subcontractors,777
http://statistics.data.gov.uk/id/local-authority/12UE,Huntingdonshire District Council,03/06/2010,58266,415.02,Ken Girvan Printers Ltd,CR027358,Arts Development,Distribution Costs,708
http://statistics.data.gov.uk/id/local-authority/12UE,Huntingdonshire District Council,03/06/2010,58266,368,Ken Girvan Printers Ltd,CR027358,Arts Development,Printing (External),220
http://statistics.data.gov.uk/id/local-authority/12UE,Huntingdonshire District Council,17/06/2010,58959,164.69,T N T Post Midlands Ltd,CR479965,Arts Development,Postage,231
http://statistics.data.gov.uk/id/local-authority/12UE,Huntingdonshire District Council,24/06/2010,60223,208.72,Bandvulc Tyres Ltd,CR406810,Bring Sites Recycling,Tyres,630
http://statistics.data.gov.uk/id/local-authority/12UE,Huntingdonshire District Council,17/06/2010,494029,650,Post Office  Ltd,CR008902,Bring Sites Recycling,Vehicle Licence,609
http://statistics.data.gov.uk/id/local-authority/12UE,Huntingdonshire District Council,17/06/2010,60425,"1,475.62",Opus International Consultants,CR479831,Building Control Applications,Consultants Other,711
http://statistics.data.gov.uk/id/local-authority/12UE,Huntingdonshire District Council,10/06/2010,493758,1049.28,North Kesteven District Council,CR477399,Building Control Other,Subcontractors,777
http://statistics.data.gov.uk/id/local-authority/12UE,Huntingdonshire District Council,10/06/2010,493759,2516.85,North Kesteven District Council,CR477399,Building Control Other,Subcontractors,777
http://statistics.data.gov.uk/id/local-authority/12UE,Huntingdonshire District Council,17/06/2010,60425,399.51,Opus International Consultants,CR479831,Building Control Other,Consultants Other,711
http://statistics.data.gov.uk/id/local-authority/12UE,Huntingdonshire District Council,24/06/2010,59458,229.13,Beebys Limited,CR415822,Bus Stations,Gen Building Mtce - Planned,304
http://statistics.data.gov.uk/id/local-authority/12UE,Huntingdonshire District Council,24/06/2010,59460,229.13,Beebys Limited,CR415822,Bus Stations,Gen Building Mtce - Planned,304
http://statistics.data.gov.uk/id/local-authority/12UE,Huntingdonshire District Council,24/06/2010,59458,23.5,Beebys Limited,CR415822,Bus Stations,Window Cleaning,442
http://statistics.data.gov.uk/id/local-authority/12UE,Huntingdonshire District Council,24/06/2010,59460,23.5,Beebys Limited,CR415822,Bus Stations,Window Cleaning,442
http://statistics.data.gov.uk/id/local-authority/12UE,Huntingdonshire District Council,03/06/2010,58267,699.13,Fat Pipe Satcom Ltd,CR479423,C C T V,Transmission Lines Rental,767
http://statistics.data.gov.uk/id/local-authority/12UE,Huntingdonshire District Council,10/06/2010,58958,13.9,T N T Post Midlands Ltd,CR479965,Call Centre,Postage,231
http://statistics.data.gov.uk/id/local-authority/12UE,Huntingdonshire District Council,17/06/2010,58959,12.09,T N T Post Midlands Ltd,CR479965,Call Centre,Postage,231
http://statistics.data.gov.uk/id/local-authority/12UE,Huntingdonshire District Council,24/06/2010,60492,12.09,T N T Post Midlands Ltd,CR479965,Call Centre,Postage,231
http://statistics.data.gov.uk/id/local-authority/12UE,Huntingdonshire District Council,24/06/2010,60493,12.61,T N T Post Midlands Ltd,CR479965,Call Centre,Postage,231
http://statistics.data.gov.uk/id/local-authority/12UE,Huntingdonshire District Council,03/06/2010,57828,679.97,J Breheny Contractors Ltd,CR000314,Car Park Assets,Sitework,359
http://statistics.data.gov.uk/id/local-authority/12UE,Huntingdonshire District Council,03/06/2010,57829,"3,168.47",J Breheny Contractors Ltd,CR000314,Car Park Assets,Sitework,359
http://statistics.data.gov.uk/id/local-authority/12UE,Huntingdonshire District Council,24/06/2010,60113,"10,135.56",John Henry & Sons,CR031967,Car Park Assets,Sitework,359
http://statistics.data.gov.uk/id/local-authority/12UE,Huntingdonshire District Council,24/06/2010,59923,"1,446.43",Bemrose Booth,CR407126,Car Park Management,Tickets,227
http://statistics.data.gov.uk/id/local-authority/12UE,Huntingdonshire District Council,24/06/2010,59925,"-1,399.52",Bemrose Booth,CR407126,Car Park Management,Tickets,227
http://statistics.data.gov.uk/id/local-authority/12UE,Huntingdonshire District Council,24/06/2010,59926,1422.93,Bemrose Booth,CR407126,Car Park Management,Tickets,227
http://statistics.data.gov.uk/id/local-authority/12UE,Huntingdonshire District Council,24/06/2010,59927,-542.85,Bemrose Booth,CR407126,Car Park Management,Tickets,227
http://statistics.data.gov.uk/id/local-authority/12UE,Huntingdonshire District Council,03/06/2010,58060,"3,630.87",Cale Briparc Ltd,CR401137,Car Park Management,Car Park Machines,522
http://statistics.data.gov.uk/id/local-authority/12UE,Huntingdonshire District Council,24/06/2010,60441,"3,630.87",Cale Briparc Ltd,CR401137,Car Park Management,Car Park Machines,522
http://statistics.data.gov.uk/id/local-authority/12UE,Huntingdonshire District Council,17/06/2010,59177,"5,458.57",G4s Cashservices Uk Ltd,CR407133,Car Park Management,Cash Collection,702
http://statistics.data.gov.uk/id/local-authority/12UE,Huntingdonshire District Council,24/06/2010,494236,412.43,Huntingdon Town Council,CR002471,Car Park Management,Subcontractors,777
http://statistics.data.gov.uk/id/local-authority/12UE,Huntingdonshire District Council,10/06/2010,59507,661.12,Swalec,CR407130,Car Park Management,Electricity,420
http://statistics.data.gov.uk/id/local-authority/12UE,Huntingdonshire District Council,24/06/2010,60984,559.13,Swalec,CR407130,Car Park Management,Electricity,420
http://statistics.data.gov.uk/id/local-authority/12UE,Huntingdonshire District Council,03/06/2010,57601,"1,998.00",Zurich Municipal,CR003638,Car Park Management,Insurance Excess,797
http://statistics.data.gov.uk/id/local-authority/12UE,Huntingdonshire District Council,24/06/2010,60049,763.75,Jones Plus Limited,CR416883,Community Projects,Grants (Paid Out),800
http://statistics.data.gov.uk/id/local-authority/12UE,Huntingdonshire District Council,17/06/2010,58974,-5744.25,Quadrant Security Group,CR027775,Community Safety,Cctv Equipment,526
http://statistics.data.gov.uk/id/local-authority/12UE,Huntingdonshire District Council,17/06/2010,58975,"5,744.25",Quadrant Security Group,CR027775,Community Safety,Cctv Equipment,526
http://statistics.data.gov.uk/id/local-authority/12UE,Huntingdonshire District Council,17/06/2010,58976,"5,869.13",Quadrant Security Group,CR027775,Community Safety,Cctv Equipment,526
http://statistics.data.gov.uk/id/local-authority/12UE,Huntingdonshire District Council,17/06/2010,494034,2500,REDACTED PERSONAL DATA,CR480690,Conservation & Listed Build,Grants (Paid Out),800
http://statistics.data.gov.uk/id/local-authority/12UE,Huntingdonshire District Council,24/06/2010,59193,620.77,Newlyn Plc,CR409114,Council Tax,Bailiffs,703
http://statistics.data.gov.uk/id/local-authority/12UE,Huntingdonshire District Council,17/06/2010,60186,70.03,Shell Uk Ltd,CR028192,Countryside Management,Diesel,615
http://statistics.data.gov.uk/id/local-authority/12UE,Huntingdonshire District Council,17/06/2010,60186,67.46,Shell Uk Ltd,CR028192,Countryside Management,Petrol,614
http://statistics.data.gov.uk/id/local-authority/12UE,Huntingdonshire District Council,03/06/2010,58688,1524.66,Dell Computer Corporation,CR408320,Customer Service Centres,P C'S And Accessories,201
http://statistics.data.gov.uk/id/local-authority/12UE,Huntingdonshire District Council,17/06/2010,59175,510.01,G4s Cashservices Uk Ltd,CR407133,Customer Service Centres,Cash Collection,702
http://statistics.data.gov.uk/id/local-authority/12UE,Huntingdonshire District Council,24/06/2010,494359,5287.5,St Ives Town Council,CR000701,Customer Service Centres,Rent,410
http://statistics.data.gov.uk/id/local-authority/12UE,Huntingdonshire District Council,24/06/2010,494359,2165.8,St Ives Town Council,CR000701,Customer Service Centres,Service Charges,412
http://statistics.data.gov.uk/id/local-authority/12UE,Huntingdonshire District Council,10/06/2010,60091,"25,557.43",Capita Symonds,CR480278,Dc Application Processing,Consultants Other,711
http://statistics.data.gov.uk/id/local-authority/12UE,Huntingdonshire District Council,17/06/2010,59135,573.99,Reading Agricultural Consultants,CR404991,Dc Application Processing,Consultants Other,711
http://statistics.data.gov.uk/id/local-authority/12UE,Huntingdonshire District Council,10/06/2010,58619,779,Women'S Institute,CR400996,Dc Application Processing,Hire Of Rooms,411
http://statistics.data.gov.uk/id/local-authority/12UE,Huntingdonshire District Council,10/06/2010,58559,561.85,B. S. Graves Electrical Ltd,CR000363,Depots,Gen Building Mtce - Responsive,303
http://statistics.data.gov.uk/id/local-authority/12UE,Huntingdonshire District Council,10/06/2010,59544,"1,353.18",Ecocleen Services Limited,CR406985,Depots,Building Cleaning External,441
http://statistics.data.gov.uk/id/local-authority/12UE,Huntingdonshire District Council,10/06/2010,60227,796.76,E-On Energy,CR416430,Depots,Electricity,420
http://statistics.data.gov.uk/id/local-authority/12UE,Huntingdonshire District Council,17/06/2010,60251,"4,871.85",Swalec,CR407130,Depots,Electricity,420
http://statistics.data.gov.uk/id/local-authority/12UE,Huntingdonshire District Council,24/06/2010,61050,"1,097.05",Kingston Communications,CR417066,Development Team,Software,206
http://statistics.data.gov.uk/id/local-authority/12UE,Huntingdonshire District Council,24/06/2010,61014,500.55,Anglia Print Solutions,CR412118,Document Centre,Subcontractors,777
http://statistics.data.gov.uk/id/local-authority/12UE,Huntingdonshire District Council,24/06/2010,61010,"1,043.02",B & H Digital Ltd,CR478080,Document Centre,Subcontractors,777
http://statistics.data.gov.uk/id/local-authority/12UE,Huntingdonshire District Council,24/06/2010,59890,890.09,Northgate Public Sector Ltd,CR409869,Document Centre,Equipment Maintenance,511
http://statistics.data.gov.uk/id/local-authority/12UE,Huntingdonshire District Council,24/06/2010,59890,14.1,Northgate Public Sector Ltd,CR409869,Document Centre,Postage,231
http://statistics.data.gov.uk/id/local-authority/12UE,Huntingdonshire District Council,10/06/2010,58507,40.8,Royal Mail,CR027083,Document Centre,Postage,231
http://statistics.data.gov.uk/id/local-authority/12UE,Huntingdonshire District Council,10/06/2010,58922,"1,007.48",Royal Mail,CR027083,Document Centre,Postage,231
http://statistics.data.gov.uk/id/local-authority/12UE,Huntingdonshire District Council,10/06/2010,58924,626.95,Royal Mail,CR027083,Document Centre,Postage,231
http://statistics.data.gov.uk/id/local-authority/12UE,Huntingdonshire District Council,24/06/2010,59877,"1,354.65",Royal Mail,CR027083,Document Centre,Postage,231
http://statistics.data.gov.uk/id/local-authority/12UE,Huntingdonshire District Council,24/06/2010,59869,985.83,Sudbury Print Group Ltd,CR024134,Document Centre,Subcontractors,777
http://statistics.data.gov.uk/id/local-authority/12UE,Huntingdonshire District Council,03/06/2010,58928,550.46,T N T Post Midlands Ltd,CR479965,Document Centre,Postage,231
http://statistics.data.gov.uk/id/local-authority/12UE,Huntingdonshire District Council,10/06/2010,58958,"1,764.21",T N T Post Midlands Ltd,CR479965,Document Centre,Postage,231
http://statistics.data.gov.uk/id/local-authority/12UE,Huntingdonshire District Council,17/06/2010,58959,652.84,T N T Post Midlands Ltd,CR479965,Document Centre,Postage,231
http://statistics.data.gov.uk/id/local-authority/12UE,Huntingdonshire District Council,24/06/2010,60492,296.86,T N T Post Midlands Ltd,CR479965,Document Centre,Postage,231
http://statistics.data.gov.uk/id/local-authority/12UE,Huntingdonshire District Council,24/06/2010,60493,610.38,T N T Post Midlands Ltd,CR479965,Document Centre,Postage,231
http://statistics.data.gov.uk/id/local-authority/12UE,Huntingdonshire District Council,17/06/2010,59883,"5,113.60",West Country Paper,CR400581,Document Centre,Subcontractors,777
http://statistics.data.gov.uk/id/local-authority/12UE,Huntingdonshire District Council,17/06/2010,59884,"1,288.27",West Country Paper,CR400581,Document Centre,Subcontractors,777
http://statistics.data.gov.uk/id/local-authority/12UE,Huntingdonshire District Council,24/06/2010,60223,"1,141.52",Bandvulc Tyres Ltd,CR406810,Domestic Refuse,Tyres,630
http://statistics.data.gov.uk/id/local-authority/12UE,Huntingdonshire District Council,10/06/2010,59427,"1,803.04",Cummins Uk,CR480395,Domestic Refuse,Vehicle Maintenance,619
http://statistics.data.gov.uk/id/local-authority/12UE,Huntingdonshire District Council,17/06/2010,59921,643.9,G E Capital Tls Ltd,CR411508,Domestic Refuse,Vehicle Hire,607
http://statistics.data.gov.uk/id/local-authority/12UE,Huntingdonshire District Council,24/06/2010,61063,831.45,Magnum Tyres Ltd,CR479195,Domestic Refuse,Tyres,630
http://statistics.data.gov.uk/id/local-authority/12UE,Huntingdonshire District Council,17/06/2010,494029,1950,Post Office  Ltd,CR008902,Domestic Refuse,Vehicle Licence,609
http://statistics.data.gov.uk/id/local-authority/12UE,Huntingdonshire District Council,03/06/2010,58554,"4,338.66",Qubic Recruitment Solutions,CR416827,Domestic Refuse,Hired Staff,100
http://statistics.data.gov.uk/id/local-authority/12UE,Huntingdonshire District Council,10/06/2010,58967,"3,478.05",Qubic Recruitment Solutions,CR416827,Domestic Refuse,Hired Staff,100
http://statistics.data.gov.uk/id/local-authority/12UE,Huntingdonshire District Council,17/06/2010,59889,3590.98,Qubic Recruitment Solutions,CR416827,Domestic Refuse,Hired Staff,100
http://statistics.data.gov.uk/id/local-authority/12UE,Huntingdonshire District Council,17/06/2010,60437,305.5,Red Forge Ltd,CR405690,Domestic Refuse,Vehicle Maintenance,619
http://statistics.data.gov.uk/id/local-authority/12UE,Huntingdonshire District Council,17/06/2010,58961,"1,326.97",Royal Mail,CR027083,Elections,Postage,231
http://statistics.data.gov.uk/id/local-authority/12UE,Huntingdonshire District Council,24/06/2010,60593,"1,071.60",Sci Print Limited,CR416581,Elections,Stationery,225
http://statistics.data.gov.uk/id/local-authority/12UE,Huntingdonshire District Council,17/06/2010,59412,"1,629.73",Sudbury Print Group Ltd,CR024134,Elections,Stationery,225
http://statistics.data.gov.uk/id/local-authority/12UE,Huntingdonshire District Council,03/06/2010,58928,350.22,T N T Post Midlands Ltd,CR479965,Elections,Postage,231
http://statistics.data.gov.uk/id/local-authority/12UE,Huntingdonshire District Council,10/06/2010,58958,177.81,T N T Post Midlands Ltd,CR479965,Elections,Postage,231
http://statistics.data.gov.uk/id/local-authority/12UE,Huntingdonshire District Council,03/06/2010,58484,528.76,Allwag Promotions Limited,CR480379,Energy Efficiency,Advertising/Promoting Services,255
http://statistics.data.gov.uk/id/local-authority/12UE,Huntingdonshire District Council,17/06/2010,58913,981.13,Allwag Promotions Limited,CR480379,Energy Efficiency,Advertising/Promoting Services,255
http://statistics.data.gov.uk/id/local-authority/12UE,Huntingdonshire District Council,03/06/2010,58484,29.38,Allwag Promotions Limited,CR480379,Energy Efficiency,Postage,231
http://statistics.data.gov.uk/id/local-authority/12UE,Huntingdonshire District Council,17/06/2010,58913,29.38,Allwag Promotions Limited,CR480379,Energy Efficiency,Postage,231
http://statistics.data.gov.uk/id/local-authority/12UE,Huntingdonshire District Council,03/06/2010,57827,619.38,J Breheny Contractors Ltd,CR000314,Energy Efficiency,Sitework,359
http://statistics.data.gov.uk/id/local-authority/12UE,Huntingdonshire District Council,17/06/2010,59832,"1,351.25",National Energy Services Ltd,CR002588,Energy Efficiency,Professional Subscriptions,755
http://statistics.data.gov.uk/id/local-authority/12UE,Huntingdonshire District Council,17/06/2010,57603,"8,788.42",Ihs (Global)  Limited,CR416521,Engineering & Arch M Us,Software,206
http://statistics.data.gov.uk/id/local-authority/12UE,Huntingdonshire District Council,24/06/2010,60678,"36,416.45",Apollo Property Services Group,CR480335,Environmental Improvements,Building Construction,300
http://statistics.data.gov.uk/id/local-authority/12UE,Huntingdonshire District Council,03/06/2010,57826,528.75,J Breheny Contractors Ltd,CR000314,Environmental Improvements,Sitework,359
http://statistics.data.gov.uk/id/local-authority/12UE,Huntingdonshire District Council,17/06/2010,60426,"1,128.00",Jba Construction & Management Services,CR416716,Environmental Improvements,Consultants Other,711
http://statistics.data.gov.uk/id/local-authority/12UE,Huntingdonshire District Council,03/06/2010,59483,2350,Sdc Builders Ltd,CR131743,Estates Properties Capital,Building Construction,300
http://statistics.data.gov.uk/id/local-authority/12UE,Huntingdonshire District Council,03/06/2010,58540,944.7,Audit Commision,CR000237,External Audit,Audit Fees,701
http://statistics.data.gov.uk/id/local-authority/12UE,Huntingdonshire District Council,03/06/2010,58973,"1,762.50",Advanced Business Solutions,CR032921,Financial Services,Software,206
http://statistics.data.gov.uk/id/local-authority/12UE,Huntingdonshire District Council,17/06/2010,58939,"5,287.50",Deloitte,CR416667,Financial Services Mus,Computer Audit,778
http://statistics.data.gov.uk/id/local-authority/12UE,Huntingdonshire District Council,04/06/2010,59808,888.07,Quo Vadis Consultancy Limited,CR030425,Financial Services Mus,Consultants Other,711
http://statistics.data.gov.uk/id/local-authority/12UE,Huntingdonshire District Council,24/06/2010,494036,122.99,Regal Credit Consultants Ltd,CR415027,Financial Services Mus,Bailiffs,703
http://statistics.data.gov.uk/id/local-authority/12UE,Huntingdonshire District Council,03/06/2010,59641,"7,357.31",Computershare Vouchers Ltd,CR412205,General Creditors,Deductions Paid To Third Party,26
http://statistics.data.gov.uk/id/local-authority/12UE,Huntingdonshire District Council,17/06/2010,60578,803.05,Bearings Structural Repairs Limited,CR480193,Government Creditors,Tax Payment,23
http://statistics.data.gov.uk/id/local-authority/12UE,Huntingdonshire District Council,17/06/2010,59820,64.63,Autoelec Cambs,CR480035,Grounds Maintenance (Combined),Vehicle Maintenance,619
http://statistics.data.gov.uk/id/local-authority/12UE,Huntingdonshire District Council,17/06/2010,59855,934.13,Cambridge Water Plc,CR000172,Grounds Maintenance (Combined),Water,432
http://statistics.data.gov.uk/id/local-authority/12UE,Huntingdonshire District Council,24/06/2010,60133,"1,734.98",Ernest Doe & Sons,CR000261,Grounds Maintenance (Combined),Vehicle Maintenance,619
http://statistics.data.gov.uk/id/local-authority/12UE,Huntingdonshire District Council,24/06/2010,60158,"1,030.53",Ernest Doe & Sons,CR000261,Grounds Maintenance (Combined),Vehicle Maintenance,619
http://statistics.data.gov.uk/id/local-authority/12UE,Huntingdonshire District Council,24/06/2010,60162,857.67,Ernest Doe & Sons,CR000261,Grounds Maintenance (Combined),Vehicle Maintenance,619
http://statistics.data.gov.uk/id/local-authority/12UE,Huntingdonshire District Council,24/06/2010,60192,"1,260.83",Euramka Promotions Ltd,CR001864,Grounds Maintenance (Combined),Diesel,615
http://statistics.data.gov.uk/id/local-authority/12UE,Huntingdonshire District Council,24/06/2010,60192,156.1,Euramka Promotions Ltd,CR001864,Grounds Maintenance (Combined),Petrol,614
http://statistics.data.gov.uk/id/local-authority/12UE,Huntingdonshire District Council,10/06/2010,58950,"1,645.00",Global Tree Solutions,CR400957,Grounds Maintenance (Combined),Tree Maintenance,357
http://statistics.data.gov.uk/id/local-authority/12UE,Huntingdonshire District Council,10/06/2010,59858,869.5,K Irvine Plant Llp,CR480665,Grounds Maintenance (Combined),Equipment Hire,507
http://statistics.data.gov.uk/id/local-authority/12UE,Huntingdonshire District Council,10/06/2010,58965,654.17,Qubic Recruitment Solutions,CR416827,Grounds Maintenance (Combined),Hired Staff,100
http://statistics.data.gov.uk/id/local-authority/12UE,Huntingdonshire District Council,17/06/2010,59891,602.81,Qubic Recruitment Solutions,CR416827,Grounds Maintenance (Combined),Hired Staff,100
http://statistics.data.gov.uk/id/local-authority/12UE,Huntingdonshire District Council,17/06/2010,60186,427.79,Shell Uk Ltd,CR028192,Grounds Maintenance (Combined),Petrol,614
http://statistics.data.gov.uk/id/local-authority/12UE,Huntingdonshire District Council,17/06/2010,59118,528.75,Isc Networks Ltd,CR004345,Head Of Imd,Training - I T,134
http://statistics.data.gov.uk/id/local-authority/12UE,Huntingdonshire District Council,24/06/2010,59512,528.75,Isc Networks Ltd,CR004345,Head Of Imd,Training - I T,134
http://statistics.data.gov.uk/id/local-authority/12UE,Huntingdonshire District Council,03/06/2010,58192,504.31,1st Choice Recruitment,CR406132,Helpdesk,Hired Staff,100
http://statistics.data.gov.uk/id/local-authority/12UE,Huntingdonshire District Council,10/06/2010,58706,525.75,1st Choice Recruitment,CR406132,Helpdesk,Hired Staff,100
http://statistics.data.gov.uk/id/local-authority/12UE,Huntingdonshire District Council,17/06/2010,59120,612.46,1st Choice Recruitment,CR406132,Helpdesk,Hired Staff,100
http://statistics.data.gov.uk/id/local-authority/12UE,Huntingdonshire District Council,03/06/2010,59121,677.15,1st Choice Recruitment,CR406132,Helpdesk,Hired Staff,100
http://statistics.data.gov.uk/id/local-authority/12UE,Huntingdonshire District Council,24/06/2010,59510,537.56,1st Choice Recruitment,CR406132,Helpdesk,Hired Staff,100
http://statistics.data.gov.uk/id/local-authority/12UE,Huntingdonshire District Council,24/06/2010,59511,504.31,1st Choice Recruitment,CR406132,Helpdesk,Hired Staff,100
http://statistics.data.gov.uk/id/local-authority/12UE,Huntingdonshire District Council,24/06/2010,60651,966.81,Biffa Waste Services Ltd,CR416469,Hinchingbrooke Country Park,Waste Disposal,763
http://statistics.data.gov.uk/id/local-authority/12UE,Huntingdonshire District Council,17/06/2010,59882,531.41,King Bros,CR411339,Hinchingbrooke Country Park,Catering Materials,559
http://statistics.data.gov.uk/id/local-authority/12UE,Huntingdonshire District Council,17/06/2010,58676,783.78,S S Motors (Fuels)  Ltd,CR400864,Hinchingbrooke Country Park,Diesel,615
http://statistics.data.gov.uk/id/local-authority/12UE,Huntingdonshire District Council,17/06/2010,60663,598.81,Swalec,CR407130,Hinchingbrooke Country Park,Electricity,420
http://statistics.data.gov.uk/id/local-authority/12UE,Huntingdonshire District Council,24/06/2010,60982,743.04,Swalec,CR407130,Hinchingbrooke Country Park,Electricity,420
http://statistics.data.gov.uk/id/local-authority/12UE,Huntingdonshire District Council,17/06/2010,57603,117.5,Ihs (Global)  Limited,CR416521,Home Improvement Agency,Software,206
http://statistics.data.gov.uk/id/local-authority/12UE,Huntingdonshire District Council,17/06/2010,60664,"2,289.33",Luminus Homes,CR401276,Homeless Prevention,Gen Building Mtce - Responsive,303
http://statistics.data.gov.uk/id/local-authority/12UE,Huntingdonshire District Council,03/06/2010,59445,540.5,Alexanders,CR415843,Homelessness Management,Removal/Storage,750
http://statistics.data.gov.uk/id/local-authority/12UE,Huntingdonshire District Council,17/06/2010,59166,"1,045.75",Its Training Uk Ltd,CR478092,Housing  Benefits Admin,Training - Operational,131
http://statistics.data.gov.uk/id/local-authority/12UE,Huntingdonshire District Council,24/06/2010,60568,"3,106.24",Anglian Water,CR000071,Housing Services Other,Water,432
http://statistics.data.gov.uk/id/local-authority/12UE,Huntingdonshire District Council,03/06/2010,58713,704.87,Cintra Ltd,CR028441,Housing Services Other,Translation Services,766
http://statistics.data.gov.uk/id/local-authority/12UE,Huntingdonshire District Council,17/06/2010,60570,"1,094.88",Cintra Ltd,CR028441,Housing Services Other,Translation Services,766
http://statistics.data.gov.uk/id/local-authority/12UE,Huntingdonshire District Council,17/06/2010,60247,601.82,Swalec,CR407130,Housing Services Other,Electricity,420
http://statistics.data.gov.uk/id/local-authority/12UE,Huntingdonshire District Council,10/06/2010,59449,587.5,Complywise,CR480654,Human Resources,Software,206
http://statistics.data.gov.uk/id/local-authority/12UE,Huntingdonshire District Council,24/06/2010,59850,"1,175.00",Safety Media Ltd,CR033676,Human Resources,Software,206
http://statistics.data.gov.uk/id/local-authority/12UE,Huntingdonshire District Council,24/06/2010,60508,"59,920.30",Oce (Uk) Ltd,CR417161,I T Capital,Equipment Purchases,500
http://statistics.data.gov.uk/id/local-authority/12UE,Huntingdonshire District Council,24/06/2010,60509,"6,873.75",Oce (Uk) Ltd,CR417161,I T Capital,Equipment Purchases,500
http://statistics.data.gov.uk/id/local-authority/12UE,Huntingdonshire District Council,24/06/2010,61000,"94,956.45",Oce (Uk) Ltd,CR417161,I T Capital,Equipment Purchases,500
http://statistics.data.gov.uk/id/local-authority/12UE,Huntingdonshire District Council,03/06/2010,59440,315,A & S Fenner,CR000092,Improvement Grants,Home Improvement Agency Fees,724
http://statistics.data.gov.uk/id/local-authority/12UE,Huntingdonshire District Council,10/06/2010,59548,279,A & S Fenner,CR000092,Improvement Grants,Home Improvement Agency Fees,724
http://statistics.data.gov.uk/id/local-authority/12UE,Huntingdonshire District Council,10/06/2010,60077,829.2,A & S Fenner,CR000092,Improvement Grants,Home Improvement Agency Fees,724
http://statistics.data.gov.uk/id/local-authority/12UE,Huntingdonshire District Council,17/06/2010,60120,180,A & S Fenner,CR000092,Improvement Grants,Home Improvement Agency Fees,724
http://statistics.data.gov.uk/id/local-authority/12UE,Huntingdonshire District Council,17/06/2010,60666,132.5,A & S Fenner,CR000092,Improvement Grants,Home Improvement Agency Fees,724
http://statistics.data.gov.uk/id/local-authority/12UE,Huntingdonshire District Council,03/06/2010,59440,"3,150.00",A & S Fenner,CR000092,Improvement Grants,Mandatory Grants,801
http://statistics.data.gov.uk/id/local-authority/12UE,Huntingdonshire District Council,10/06/2010,59548,"2,790.00",A & S Fenner,CR000092,Improvement Grants,Mandatory Grants,801
http://statistics.data.gov.uk/id/local-authority/12UE,Huntingdonshire District Council,10/06/2010,60077,"3,318.00",A & S Fenner,CR000092,Improvement Grants,Mandatory Grants,801
http://statistics.data.gov.uk/id/local-authority/12UE,Huntingdonshire District Council,17/06/2010,60120,"1,800.00",A & S Fenner,CR000092,Improvement Grants,Mandatory Grants,801
http://statistics.data.gov.uk/id/local-authority/12UE,Huntingdonshire District Council,10/06/2010,60202,"3,230.00",A & S Fenner,CR000092,Improvement Grants,Mandatory Grants,801
http://statistics.data.gov.uk/id/local-authority/12UE,Huntingdonshire District Council,17/06/2010,60666,"1,325.00",A & S Fenner,CR000092,Improvement Grants,Mandatory Grants,801
http://statistics.data.gov.uk/id/local-authority/12UE,Huntingdonshire District Council,17/06/2010,60669,"3,650.00",A & S Fenner,CR000092,Improvement Grants,Mandatory Grants,801
http://statistics.data.gov.uk/id/local-authority/12UE,Huntingdonshire District Council,10/06/2010,59547,268,B P Morse,CR030128,Improvement Grants,Home Improvement Agency Fees,724
http://statistics.data.gov.uk/id/local-authority/12UE,Huntingdonshire District Council,24/06/2010,61133,343,B P Morse,CR030128,Improvement Grants,Home Improvement Agency Fees,724
http://statistics.data.gov.uk/id/local-authority/12UE,Huntingdonshire District Council,10/06/2010,59547,"2,680.00",B P Morse,CR030128,Improvement Grants,Mandatory Grants,801
http://statistics.data.gov.uk/id/local-authority/12UE,Huntingdonshire District Council,24/06/2010,61133,"3,479.00",B P Morse,CR030128,Improvement Grants,Mandatory Grants,801
http://statistics.data.gov.uk/id/local-authority/12UE,Huntingdonshire District Council,03/06/2010,59446,367,Bsg Property Services Ltd,CR089905,Improvement Grants,Home Improvement Agency Fees,724
http://statistics.data.gov.uk/id/local-authority/12UE,Huntingdonshire District Council,10/06/2010,60128,123.83,Bsg Property Services Ltd,CR089905,Improvement Grants,Home Improvement Agency Fees,724
http://statistics.data.gov.uk/id/local-authority/12UE,Huntingdonshire District Council,03/06/2010,59446,"3,670.00",Bsg Property Services Ltd,CR089905,Improvement Grants,Mandatory Grants,801
http://statistics.data.gov.uk/id/local-authority/12UE,Huntingdonshire District Council,10/06/2010,60128,"1,238.35",Bsg Property Services Ltd,CR089905,Improvement Grants,Mandatory Grants,801
http://statistics.data.gov.uk/id/local-authority/12UE,Huntingdonshire District Council,24/06/2010,59583,500,Classic Windows And Conservatories,CR400575,Improvement Grants,Subcontractors,777
http://statistics.data.gov.uk/id/local-authority/12UE,Huntingdonshire District Council,24/06/2010,59585,500,Classic Windows And Conservatories,CR400575,Improvement Grants,Subcontractors,777
http://statistics.data.gov.uk/id/local-authority/12UE,Huntingdonshire District Council,10/06/2010,60127,198,Mobility Equipment Co Ltd,CR405109,Improvement Grants,Home Improvement Agency Fees,724
http://statistics.data.gov.uk/id/local-authority/12UE,Huntingdonshire District Council,10/06/2010,60127,"1,980.00",Mobility Equipment Co Ltd,CR405109,Improvement Grants,Mandatory Grants,801
http://statistics.data.gov.uk/id/local-authority/12UE,Huntingdonshire District Council,03/06/2010,59457,981.52,Movement 2,CR480659,Improvement Grants,Home Improvement Agency Fees,724
http://statistics.data.gov.uk/id/local-authority/12UE,Huntingdonshire District Council,03/06/2010,59457,"1,955.21",Movement 2,CR480659,Improvement Grants,Mandatory Grants,801
http://statistics.data.gov.uk/id/local-authority/12UE,Huntingdonshire District Council,17/06/2010,60121,"3,355.20",Movement 2,CR480659,Improvement Grants,Mandatory Grants,801
http://statistics.data.gov.uk/id/local-authority/12UE,Huntingdonshire District Council,17/06/2010,60674,"2,950.00",Mws General Builders,CR403808,Improvement Grants,Mandatory Grants,801
http://statistics.data.gov.uk/id/local-authority/12UE,Huntingdonshire District Council,03/06/2010,59439,286.56,Princebuild Ltd,CR000645,Improvement Grants,Home Improvement Agency Fees,724
http://statistics.data.gov.uk/id/local-authority/12UE,Huntingdonshire District Council,10/06/2010,60125,301.3,Princebuild Ltd,CR000645,Improvement Grants,Home Improvement Agency Fees,724
http://statistics.data.gov.uk/id/local-authority/12UE,Huntingdonshire District Council,03/06/2010,59439,"2,865.63",Princebuild Ltd,CR000645,Improvement Grants,Mandatory Grants,801
http://statistics.data.gov.uk/id/local-authority/12UE,Huntingdonshire District Council,10/06/2010,60125,228,Princebuild Ltd,CR000645,Improvement Grants,Mandatory Grants,801
http://statistics.data.gov.uk/id/local-authority/12UE,Huntingdonshire District Council,03/06/2010,59444,"1,277.25",Priory Buildings (St Neots) Ltd,CR410900,Improvement Grants,Mandatory Grants,801
http://statistics.data.gov.uk/id/local-authority/12UE,Huntingdonshire District Council,17/06/2010,60244,521,Squires & Son Ltd,CR478185,Improvement Grants,Home Improvement Agency Fees,724
http://statistics.data.gov.uk/id/local-authority/12UE,Huntingdonshire District Council,17/06/2010,60244,"5,210.00",Squires & Son Ltd,CR478185,Improvement Grants,Mandatory Grants,801
http://statistics.data.gov.uk/id/local-authority/12UE,Huntingdonshire District Council,24/06/2010,61132,500,Westholme Ltd,CR415224,Improvement Grants,Mandatory Grants,801
http://statistics.data.gov.uk/id/local-authority/12UE,Huntingdonshire District Council,03/06/2010,59504,"119,386.70",Graham,CR480029,Industrial Properties Capital,Building Construction,300
http://statistics.data.gov.uk/id/local-authority/12UE,Huntingdonshire District Council,24/06/2010,60530,"162,998.60",Graham,CR480029,Industrial Properties Capital,Building Construction,300
http://statistics.data.gov.uk/id/local-authority/12UE,Huntingdonshire District Council,03/06/2010,59471,652.78,Zef Concepts,CR478573,Industrial Properties Capital,Consultants Other,711
http://statistics.data.gov.uk/id/local-authority/12UE,Huntingdonshire District Council,03/06/2010,59414,763.75,Archant Herts And Cambs,CR403271,Kerbside Recycling,Advertising/Promoting Services,255
http://statistics.data.gov.uk/id/local-authority/12UE,Huntingdonshire District Council,17/06/2010,60216,"1,374.47",Austins Plant Services Ltd,CR477914,Kerbside Recycling,Vehicle Maintenance,619
http://statistics.data.gov.uk/id/local-authority/12UE,Huntingdonshire District Council,24/06/2010,60223,910.01,Bandvulc Tyres Ltd,CR406810,Kerbside Recycling,Tyres,630
http://statistics.data.gov.uk/id/local-authority/12UE,Huntingdonshire District Council,03/06/2010,59573,787.68,Dennis Eagle Ltd,CR000200,Kerbside Recycling,Vehicle Maintenance,619
http://statistics.data.gov.uk/id/local-authority/12UE,Huntingdonshire District Council,17/06/2010,494029,"1,950.00",Post Office  Ltd,CR008902,Kerbside Recycling,Vehicle Licence,609
http://statistics.data.gov.uk/id/local-authority/12UE,Huntingdonshire District Council,03/06/2010,58556,"1,467.68",Qubic Recruitment Solutions,CR416827,Kerbside Recycling,Hired Staff,100
http://statistics.data.gov.uk/id/local-authority/12UE,Huntingdonshire District Council,10/06/2010,58966,"1,338.55",Qubic Recruitment Solutions,CR416827,Kerbside Recycling,Hired Staff,100
http://statistics.data.gov.uk/id/local-authority/12UE,Huntingdonshire District Council,17/06/2010,59892,"2,542.70",Qubic Recruitment Solutions,CR416827,Kerbside Recycling,Hired Staff,100
http://statistics.data.gov.uk/id/local-authority/12UE,Huntingdonshire District Council,17/06/2010,60437,305.5,Red Forge Ltd,CR405690,Kerbside Recycling,Vehicle Maintenance,619
http://statistics.data.gov.uk/id/local-authority/12UE,Huntingdonshire District Council,17/06/2010,60497,"15,784.95",Lexisnexis Butterworths,CR000801,Legal Services Managment Units,Books & Publications,250
http://statistics.data.gov.uk/id/local-authority/12UE,Huntingdonshire District Council,03/06/2010,58138,"4,083.13",Sweet & Maxwell,CR412314,Legal Services Managment Units,Books & Publications,250
http://statistics.data.gov.uk/id/local-authority/12UE,Huntingdonshire District Council,10/06/2010,59127,"5,127.71",Sweet & Maxwell,CR412314,Legal Services Managment Units,Books & Publications,250
http://statistics.data.gov.uk/id/local-authority/12UE,Huntingdonshire District Council,24/06/2010,61031,"11,547.75",Alliance Leisure Services Ltd,CR415909,Leisure Centres Capital,Gen Building Mtce - Planned,304
http://statistics.data.gov.uk/id/local-authority/12UE,Huntingdonshire District Council,24/06/2010,61037,"5,287.50",Building Services Design - Bsd,CR409263,Leisure Centres Capital,Consultants Other,711
http://statistics.data.gov.uk/id/local-authority/12UE,Huntingdonshire District Council,24/06/2010,61038,"15,421.88",Building Services Design - Bsd,CR409263,Leisure Centres Capital,Consultants Other,711
http://statistics.data.gov.uk/id/local-authority/12UE,Huntingdonshire District Council,17/06/2010,60560,"3,826.92",Hytrac Lifts Ltd,CR030618,Leisure Centres Capital,Plant & Equipment Maintenance,380
http://statistics.data.gov.uk/id/local-authority/12UE,Huntingdonshire District Council,17/06/2010,60427,"1,833.00",Jba Construction & Management Services,CR416716,Leisure Centres Capital,Consultants Other,711
http://statistics.data.gov.uk/id/local-authority/12UE,Huntingdonshire District Council,17/06/2010,60559,"4,230.00",Jba Construction & Management Services,CR416716,Leisure Centres Capital,Consultants Other,711
http://statistics.data.gov.uk/id/local-authority/12UE,Huntingdonshire District Council,17/06/2010,59825,"103,966.63",R G Carter Peterborough,CR401511,Leisure Centres Capital,Building Construction,300
http://statistics.data.gov.uk/id/local-authority/12UE,Huntingdonshire District Council,10/06/2010,59964,855,Primesight Ltd,CR409870,Leisure Centres Overall,Printing (External),220
http://statistics.data.gov.uk/id/local-authority/12UE,Huntingdonshire District Council,24/06/2010,59393,"83,272.19",J Breheny Contractors Ltd,CR000314,Leisure Services Capital,Sitework,359
http://statistics.data.gov.uk/id/local-authority/12UE,Huntingdonshire District Council,17/06/2010,60427,"1,762.50",Jba Construction & Management Services,CR416716,Leisure Services Capital,Consultants Other,711
http://statistics.data.gov.uk/id/local-authority/12UE,Huntingdonshire District Council,03/06/2010,493450,3700,Molesworth Village Hall,CR411627,Leisure Services Capital,Grants (Paid Out),800
http://statistics.data.gov.uk/id/local-authority/12UE,Huntingdonshire District Council,17/06/2010,60465,"16,422.67",Pinelog Ltd,CR405529,Leisure Services Capital,Building Construction,300
http://statistics.data.gov.uk/id/local-authority/12UE,Huntingdonshire District Council,10/06/2010,60043,639,Mo Motors,CR406493,Licences,Vehicle Inspection,618
http://statistics.data.gov.uk/id/local-authority/12UE,Huntingdonshire District Council,10/06/2010,60044,747,Mo Motors,CR406493,Licences,Vehicle Inspection,618
http://statistics.data.gov.uk/id/local-authority/12UE,Huntingdonshire District Council,17/06/2010,60045,624,Mo Motors,CR406493,Licences,Vehicle Inspection,618
http://statistics.data.gov.uk/id/local-authority/12UE,Huntingdonshire District Council,24/06/2010,60046,516,Mo Motors,CR406493,Licences,Vehicle Inspection,618
http://statistics.data.gov.uk/id/local-authority/12UE,Huntingdonshire District Council,17/06/2010,60041,823.44,Mogo Uk,CR410378,Licences,Licence Plates,564
http://statistics.data.gov.uk/id/local-authority/12UE,Huntingdonshire District Council,17/06/2010,60131,"3,172.50",Meteora Ltd,CR417248,Littering,Materials,550
http://statistics.data.gov.uk/id/local-authority/12UE,Huntingdonshire District Council,24/06/2010,60093,"23,450.24",Aecom,CR478307,Local Development Framework,Consultants Other,711
http://statistics.data.gov.uk/id/local-authority/12UE,Huntingdonshire District Council,10/06/2010,60217,"7,050.00",Aecom,CR478307,Local Development Framework,Consultants Other,711
http://statistics.data.gov.uk/id/local-authority/12UE,Huntingdonshire District Council,10/06/2010,60218,"4,040.36",Aecom,CR478307,Local Development Framework,Consultants Other,711
http://statistics.data.gov.uk/id/local-authority/12UE,Huntingdonshire District Council,24/06/2010,60060,629.14,Global Radio Services Ltd,CR480114,Markets,Advertising/Promoting Services,255
http://statistics.data.gov.uk/id/local-authority/12UE,Huntingdonshire District Council,03/06/2010,57891,851.88,Landsmans (Co-Ownership) Ltd,CR000491,Markets,Equipment Hire,507
http://statistics.data.gov.uk/id/local-authority/12UE,Huntingdonshire District Council,24/06/2010,60720,"7,679.55",Capax Discovery Ltd,CR480587,Network Services,Software,206
http://statistics.data.gov.uk/id/local-authority/12UE,Huntingdonshire District Council,03/06/2010,59146,"3,435.00",Eacs Ltd,CR404499,Network Services,Software,206
http://statistics.data.gov.uk/id/local-authority/12UE,Huntingdonshire District Council,10/06/2010,58638,"1,962.25",Hp Care Pack Sales,CR478055,Network Services,Equipment Maintenance,511
http://statistics.data.gov.uk/id/local-authority/12UE,Huntingdonshire District Council,17/06/2010,59101,692.08,Hp Care Pack Sales,CR478055,Network Services,Equipment Maintenance,511
http://statistics.data.gov.uk/id/local-authority/12UE,Huntingdonshire District Council,24/06/2010,60719,914.15,Hp Care Pack Sales,CR478055,Network Services,Equipment Maintenance,511
http://statistics.data.gov.uk/id/local-authority/12UE,Huntingdonshire District Council,24/06/2010,61135,"35,031.16",Icm Business Continuity Services Ltd,CR410499,Network Services,Equipment Maintenance,511
http://statistics.data.gov.uk/id/local-authority/12UE,Huntingdonshire District Council,07/06/2010,493687,630,Information Commissioner,CR404972,Network Services,Registration Fee,748
http://statistics.data.gov.uk/id/local-authority/12UE,Huntingdonshire District Council,03/06/2010,39835,"13,293.82",Ntl Telewest Business,CR412057,Network Services,I T Line Rental,248
http://statistics.data.gov.uk/id/local-authority/12UE,Huntingdonshire District Council,03/06/2010,52570,"-9,209.45",Ntl Telewest Business,CR412057,Network Services,I T Line Rental,248
http://statistics.data.gov.uk/id/local-authority/12UE,Huntingdonshire District Council,10/06/2010,60132,15645.08,Vodafone Limited,CR029120,Network Services,I T Line Rental,248
http://statistics.data.gov.uk/id/local-authority/12UE,Huntingdonshire District Council,10/06/2010,60136,862.5,Vodafone Limited,CR029120,Network Services,I T Line Rental,248
http://statistics.data.gov.uk/id/local-authority/12UE,Huntingdonshire District Council,10/06/2010,60139,881.25,Vodafone Limited,CR029120,Network Services,I T Line Rental,248
http://statistics.data.gov.uk/id/local-authority/12UE,Huntingdonshire District Council,10/06/2010,60144,"-5,465.08",Vodafone Limited,CR029120,Network Services,I T Line Rental,248
http://statistics.data.gov.uk/id/local-authority/12UE,Huntingdonshire District Council,03/06/2010,59640,227.4,Blueprint,CR413624,One Leisure Huntingdon,Printing (External),220
http://statistics.data.gov.uk/id/local-authority/12UE,Huntingdonshire District Council,03/06/2010,59055,492.88,Booker Cash And Carry,CR027611,One Leisure Huntingdon,Vending Materials,560
http://statistics.data.gov.uk/id/local-authority/12UE,Huntingdonshire District Council,24/06/2010,60582,512.61,Combined Energy Solutions,CR003063,One Leisure Huntingdon,Plant & Equipment Maintenance,380
http://statistics.data.gov.uk/id/local-authority/12UE,Huntingdonshire District Council,17/06/2010,60565,"1,634.19",Ecocleen Services Limited,CR406985,One Leisure Huntingdon,Subcontractors,777
http://statistics.data.gov.uk/id/local-authority/12UE,Huntingdonshire District Council,24/06/2010,60997,"2,809.92",E-On Energy,CR416430,One Leisure Huntingdon,Gas,421
http://statistics.data.gov.uk/id/local-authority/12UE,Huntingdonshire District Council,24/06/2010,61007,518.69,E-On Energy,CR416430,One Leisure Huntingdon,Gas,421
http://statistics.data.gov.uk/id/local-authority/12UE,Huntingdonshire District Council,17/06/2010,59175,291.42,G4s Cashservices Uk Ltd,CR407133,One Leisure Huntingdon,Cash Collection,702
http://statistics.data.gov.uk/id/local-authority/12UE,Huntingdonshire District Council,24/06/2010,61128,"1,237.28",Gladstone Mrm,CR405717,One Leisure Huntingdon,Materials,550
http://statistics.data.gov.uk/id/local-authority/12UE,Huntingdonshire District Council,24/06/2010,59546,"2,103.99",Gladstone Mrm,CR405717,One Leisure Huntingdon,Software,206
http://statistics.data.gov.uk/id/local-authority/12UE,Huntingdonshire District Council,24/06/2010,60592,873.94,Glaxosmithkline,CR010424,One Leisure Huntingdon,Vending Materials,560
http://statistics.data.gov.uk/id/local-authority/12UE,Huntingdonshire District Council,10/06/2010,59828,487.63,Nemco Utilities Ltd,CR409319,One Leisure Huntingdon,Gen Building Mtce - Planned,304
http://statistics.data.gov.uk/id/local-authority/12UE,Huntingdonshire District Council,24/06/2010,59971,235,Right Directions Management Ltd,CR413738,One Leisure Huntingdon,Consultants Other,711
http://statistics.data.gov.uk/id/local-authority/12UE,Huntingdonshire District Council,17/06/2010,60696,"8,463.37",Swalec,CR407130,One Leisure Huntingdon,Electricity,420
http://statistics.data.gov.uk/id/local-authority/12UE,Huntingdonshire District Council,24/06/2010,60584,501.05,Technical Surfaces Ltd,CR031941,One Leisure Huntingdon,Grounds Mtce Contractors,351
http://statistics.data.gov.uk/id/local-authority/12UE,Huntingdonshire District Council,03/06/2010,59640,227.4,Blueprint,CR413624,One Leisure Ramsey,Printing (External),220
http://statistics.data.gov.uk/id/local-authority/12UE,Huntingdonshire District Council,02/06/2010,59404,575.75,Chubb Electronic Security,CR029346,One Leisure Ramsey,Security,450
http://statistics.data.gov.uk/id/local-authority/12UE,Huntingdonshire District Council,10/06/2010,59503,940.93,Ecocleen Services Limited,CR406985,One Leisure Ramsey,Gen Building Mtce - Planned,304
http://statistics.data.gov.uk/id/local-authority/12UE,Huntingdonshire District Council,24/06/2010,60989,"1,203.95",E-On Energy,CR416430,One Leisure Ramsey,Gas,421
http://statistics.data.gov.uk/id/local-authority/12UE,Huntingdonshire District Council,17/06/2010,59175,72.86,G4s Cashservices Uk Ltd,CR407133,One Leisure Ramsey,Cash Collection,702
http://statistics.data.gov.uk/id/local-authority/12UE,Huntingdonshire District Council,24/06/2010,61128,620.4,Gladstone Mrm,CR405717,One Leisure Ramsey,Materials,550
http://statistics.data.gov.uk/id/local-authority/12UE,Huntingdonshire District Council,24/06/2010,59546,850.03,Gladstone Mrm,CR405717,One Leisure Ramsey,Software,206
http://statistics.data.gov.uk/id/local-authority/12UE,Huntingdonshire District Council,10/06/2010,59828,487.63,Nemco Utilities Ltd,CR409319,One Leisure Ramsey,Gen Building Mtce - Planned,304
http://statistics.data.gov.uk/id/local-authority/12UE,Huntingdonshire District Council,24/06/2010,59971,235,Right Directions Management Ltd,CR413738,One Leisure Ramsey,Consultants Other,711
http://statistics.data.gov.uk/id/local-authority/12UE,Huntingdonshire District Council,17/06/2010,60661,"1,915.96",Swalec,CR407130,One Leisure Ramsey,Electricity,420
http://statistics.data.gov.uk/id/local-authority/12UE,Huntingdonshire District Council,17/06/2010,60662,"2,573.06",Swalec,CR407130,One Leisure Ramsey,Electricity,420
http://statistics.data.gov.uk/id/local-authority/12UE,Huntingdonshire District Council,03/06/2010,59640,227.4,Blueprint,CR413624,One Leisure Sawtry,Printing (External),220
http://statistics.data.gov.uk/id/local-authority/12UE,Huntingdonshire District Council,24/06/2010,60994,"1,671.80",E-On Energy,CR416430,One Leisure Sawtry,Gas,421
http://statistics.data.gov.uk/id/local-authority/12UE,Huntingdonshire District Council,17/06/2010,59175,72.86,G4s Cashservices Uk Ltd,CR407133,One Leisure Sawtry,Cash Collection,702
http://statistics.data.gov.uk/id/local-authority/12UE,Huntingdonshire District Council,24/06/2010,61128,620.4,Gladstone Mrm,CR405717,One Leisure Sawtry,Materials,550
http://statistics.data.gov.uk/id/local-authority/12UE,Huntingdonshire District Council,24/06/2010,59546,850.03,Gladstone Mrm,CR405717,One Leisure Sawtry,Software,206
http://statistics.data.gov.uk/id/local-authority/12UE,Huntingdonshire District Council,24/06/2010,60600,"1,260.78",Gowing & Hunt Ltd,CR477902,One Leisure Sawtry,Plant & Equipment Maintenance,380
http://statistics.data.gov.uk/id/local-authority/12UE,Huntingdonshire District Council,10/06/2010,59828,487.63,Nemco Utilities Ltd,CR409319,One Leisure Sawtry,Gen Building Mtce - Planned,304
http://statistics.data.gov.uk/id/local-authority/12UE,Huntingdonshire District Council,24/06/2010,59971,235,Right Directions Management Ltd,CR413738,One Leisure Sawtry,Consultants Other,711
http://statistics.data.gov.uk/id/local-authority/12UE,Huntingdonshire District Council,24/06/2010,60598,"3,154.88",Technogym Uk Ltd,CR033037,One Leisure Sawtry,Equipment Maintenance,511
http://statistics.data.gov.uk/id/local-authority/12UE,Huntingdonshire District Council,24/06/2010,60626,512.3,Technogym Uk Ltd,CR033037,One Leisure Sawtry,Equipment Maintenance,511
http://statistics.data.gov.uk/id/local-authority/12UE,Huntingdonshire District Council,17/06/2010,58999,506.43,A.G. Aylward (Ems) Ltd (Htg/P),CR000219,One Leisure St Ives,Gen Building Mtce - Responsive,303
http://statistics.data.gov.uk/id/local-authority/12UE,Huntingdonshire District Council,03/06/2010,59640,227.4,Blueprint,CR413624,One Leisure St Ives,Printing (External),220
http://statistics.data.gov.uk/id/local-authority/12UE,Huntingdonshire District Council,10/06/2010,60175,708.8,Booker Cash And Carry,CR027611,One Leisure St Ives,Bar Provisions,558
http://statistics.data.gov.uk/id/local-authority/12UE,Huntingdonshire District Council,10/06/2010,60178,773.56,Booker Cash And Carry,CR027611,One Leisure St Ives,Bar Provisions,558
http://statistics.data.gov.uk/id/local-authority/12UE,Huntingdonshire District Council,10/06/2010,60179,515.74,Booker Cash And Carry,CR027611,One Leisure St Ives,Bar Provisions,558
http://statistics.data.gov.uk/id/local-authority/12UE,Huntingdonshire District Council,10/06/2010,60181,144.83,Booker Cash And Carry,CR027611,One Leisure St Ives,Bar Provisions,558
http://statistics.data.gov.uk/id/local-authority/12UE,Huntingdonshire District Council,10/06/2010,60175,19.98,Booker Cash And Carry,CR027611,One Leisure St Ives,Catering Materials,559
http://statistics.data.gov.uk/id/local-authority/12UE,Huntingdonshire District Council,10/06/2010,60181,171.15,Booker Cash And Carry,CR027611,One Leisure St Ives,Catering Materials,559
http://statistics.data.gov.uk/id/local-authority/12UE,Huntingdonshire District Council,10/06/2010,60181,39.4,Booker Cash And Carry,CR027611,One Leisure St Ives,Cleaning Materials,443
http://statistics.data.gov.uk/id/local-authority/12UE,Huntingdonshire District Council,10/06/2010,60175,63.61,Booker Cash And Carry,CR027611,One Leisure St Ives,Confectionery,572
http://statistics.data.gov.uk/id/local-authority/12UE,Huntingdonshire District Council,10/06/2010,60181,293.42,Booker Cash And Carry,CR027611,One Leisure St Ives,Confectionery,572
http://statistics.data.gov.uk/id/local-authority/12UE,Huntingdonshire District Council,10/06/2010,60175,65.18,Booker Cash And Carry,CR027611,One Leisure St Ives,Materials,550
http://statistics.data.gov.uk/id/local-authority/12UE,Huntingdonshire District Council,10/06/2010,60181,14.73,Booker Cash And Carry,CR027611,One Leisure St Ives,Materials,550
http://statistics.data.gov.uk/id/local-authority/12UE,Huntingdonshire District Council,10/06/2010,58674,775.26,Brenntag Uk Ltd,CR015017,One Leisure St Ives,Chemicals,551
http://statistics.data.gov.uk/id/local-authority/12UE,Huntingdonshire District Council,10/06/2010,59165,"1,908.79",Broxap Ltd,CR415958,One Leisure St Ives,Sports Equipment,524
http://statistics.data.gov.uk/id/local-authority/12UE,Huntingdonshire District Council,24/06/2010,60988,"2,404.74",E-On Energy,CR416430,One Leisure St Ives,Gas,421
http://statistics.data.gov.uk/id/local-authority/12UE,Huntingdonshire District Council,24/06/2010,60992,632.97,E-On Energy,CR416430,One Leisure St Ives,Gas,421
http://statistics.data.gov.uk/id/local-authority/12UE,Huntingdonshire District Council,17/06/2010,59175,218.57,G4s Cashservices Uk Ltd,CR407133,One Leisure St Ives,Cash Collection,702
http://statistics.data.gov.uk/id/local-authority/12UE,Huntingdonshire District Council,17/06/2010,58990,705,Genesis  Lifts Ltd,CR478241,One Leisure St Ives,Training - Operational,131
http://statistics.data.gov.uk/id/local-authority/12UE,Huntingdonshire District Council,24/06/2010,61128,"1,237.27",Gladstone Mrm,CR405717,One Leisure St Ives,Materials,550
http://statistics.data.gov.uk/id/local-authority/12UE,Huntingdonshire District Council,24/06/2010,59546,"2,103.99",Gladstone Mrm,CR405717,One Leisure St Ives,Software,206
http://statistics.data.gov.uk/id/local-authority/12UE,Huntingdonshire District Council,10/06/2010,60211,512.55,Heineken Uk Ltd,CR032678,One Leisure St Ives,Bar Provisions,558
http://statistics.data.gov.uk/id/local-authority/12UE,Huntingdonshire District Council,10/06/2010,60213,"2,507.80",Heineken Uk Ltd,CR032678,One Leisure St Ives,Bar Provisions,558
http://statistics.data.gov.uk/id/local-authority/12UE,Huntingdonshire District Council,03/06/2010,58700,790.8,Iql Uk Ltd,CR415623,One Leisure St Ives,Materials,550
http://statistics.data.gov.uk/id/local-authority/12UE,Huntingdonshire District Council,17/06/2010,59549,56.4,J P Lennard Ltd,CR028595,One Leisure St Ives,Materials For Resale,570
http://statistics.data.gov.uk/id/local-authority/12UE,Huntingdonshire District Council,17/06/2010,59549,650.81,J P Lennard Ltd,CR028595,One Leisure St Ives,Sports Equipment,524
http://statistics.data.gov.uk/id/local-authority/12UE,Huntingdonshire District Council,17/06/2010,59972,912.98,Lloyds Tsb Commercial Finance Ltd,CR410928,One Leisure St Ives,Hired Staff,100
http://statistics.data.gov.uk/id/local-authority/12UE,Huntingdonshire District Council,17/06/2010,60429,"1,017.55",Lloyds Tsb Commercial Finance Ltd,CR410928,One Leisure St Ives,Hired Staff,100
http://statistics.data.gov.uk/id/local-authority/12UE,Huntingdonshire District Council,03/06/2010,58575,575.31,Maskearaid Ind Supplies,CR033423,One Leisure St Ives,Cleaning Materials,443
http://statistics.data.gov.uk/id/local-authority/12UE,Huntingdonshire District Council,10/06/2010,59828,975.26,Nemco Utilities Ltd,CR409319,One Leisure St Ives,Gen Building Mtce - Planned,304
http://statistics.data.gov.uk/id/local-authority/12UE,Huntingdonshire District Council,03/06/2010,59463,"1,013.00",Purchase Power,CR033202,One Leisure St Ives,Postage,231
http://statistics.data.gov.uk/id/local-authority/12UE,Huntingdonshire District Council,24/06/2010,59971,235,Right Directions Management Ltd,CR413738,One Leisure St Ives,Consultants Other,711
http://statistics.data.gov.uk/id/local-authority/12UE,Huntingdonshire District Council,10/06/2010,59974,613.24,Roger Wilson Electronics,CR028041,One Leisure St Ives,Gen Building Mtce - Responsive,303
http://statistics.data.gov.uk/id/local-authority/12UE,Huntingdonshire District Council,10/06/2010,60235,822.5,Roof Safety Solutions,CR478995,One Leisure St Ives,Gen Building Mtce - Responsive,303
http://statistics.data.gov.uk/id/local-authority/12UE,Huntingdonshire District Council,17/06/2010,60452,"1,489.88",Starlite Roadshow,CR024127,One Leisure St Ives,Hired Staff,100
http://statistics.data.gov.uk/id/local-authority/12UE,Huntingdonshire District Council,03/06/2010,58702,881.1,Stateside Skates Ltd,CR477642,One Leisure St Ives,Protective Clothing & Uniforms,163
http://statistics.data.gov.uk/id/local-authority/12UE,Huntingdonshire District Council,17/06/2010,60248,"1,366.68",Swalec,CR407130,One Leisure St Ives,Electricity,420
http://statistics.data.gov.uk/id/local-authority/12UE,Huntingdonshire District Council,17/06/2010,60249,"1,461.03",Swalec,CR407130,One Leisure St Ives,Electricity,420
http://statistics.data.gov.uk/id/local-authority/12UE,Huntingdonshire District Council,17/06/2010,60250,"8,383.70",Swalec,CR407130,One Leisure St Ives,Electricity,420
http://statistics.data.gov.uk/id/local-authority/12UE,Huntingdonshire District Council,03/06/2010,59610,617.37,Anglian Water,CR000071,One Leisure St Neots,Water,432
http://statistics.data.gov.uk/id/local-authority/12UE,Huntingdonshire District Council,24/06/2010,60731,511.31,Anglian Water,CR000071,One Leisure St Neots,Water,432
http://statistics.data.gov.uk/id/local-authority/12UE,Huntingdonshire District Council,24/06/2010,60732,"1,258.70",Anglian Water,CR000071,One Leisure St Neots,Water,432
http://statistics.data.gov.uk/id/local-authority/12UE,Huntingdonshire District Council,17/06/2010,60079,"1,435.33",Arjo,CR026283,One Leisure St Neots,Plant & Equipment Maintenance,380
http://statistics.data.gov.uk/id/local-authority/12UE,Huntingdonshire District Council,03/06/2010,59640,227.4,Blueprint,CR413624,One Leisure St Neots,Printing (External),220
http://statistics.data.gov.uk/id/local-authority/12UE,Huntingdonshire District Council,10/06/2010,59980,981.15,Caterserve Snacks Ltd,CR478090,One Leisure St Neots,Vending Materials,560
http://statistics.data.gov.uk/id/local-authority/12UE,Huntingdonshire District Council,24/06/2010,60911,641.54,Caterserve Snacks Ltd,CR478090,One Leisure St Neots,Vending Materials,560
http://statistics.data.gov.uk/id/local-authority/12UE,Huntingdonshire District Council,24/06/2010,60934,700.66,Caterserve Snacks Ltd,CR478090,One Leisure St Neots,Vending Materials,560
http://statistics.data.gov.uk/id/local-authority/12UE,Huntingdonshire District Council,24/06/2010,60996,"1,707.69",E-On Energy,CR416430,One Leisure St Neots,Gas,421
http://statistics.data.gov.uk/id/local-authority/12UE,Huntingdonshire District Council,17/06/2010,59175,437.16,G4s Cashservices Uk Ltd,CR407133,One Leisure St Neots,Cash Collection,702
http://statistics.data.gov.uk/id/local-authority/12UE,Huntingdonshire District Council,24/06/2010,61074,"2,805.00",Gantner Electronics Ltd,CR479042,One Leisure St Neots,Equipment Purchases,500
http://statistics.data.gov.uk/id/local-authority/12UE,Huntingdonshire District Council,24/06/2010,61128,"1,237.28",Gladstone Mrm,CR405717,One Leisure St Neots,Materials,550
http://statistics.data.gov.uk/id/local-authority/12UE,Huntingdonshire District Council,24/06/2010,59546,"2,656.24",Gladstone Mrm,CR405717,One Leisure St Neots,Software,206
http://statistics.data.gov.uk/id/local-authority/12UE,Huntingdonshire District Council,03/06/2010,58250,175.1,King Bros,CR411339,One Leisure St Neots,Bar Provisions,558
http://statistics.data.gov.uk/id/local-authority/12UE,Huntingdonshire District Council,03/06/2010,58250,250.35,King Bros,CR411339,One Leisure St Neots,Catering Materials,559
http://statistics.data.gov.uk/id/local-authority/12UE,Huntingdonshire District Council,03/06/2010,58250,114.56,King Bros,CR411339,One Leisure St Neots,Confectionery,572
http://statistics.data.gov.uk/id/local-authority/12UE,Huntingdonshire District Council,10/06/2010,59828,487.63,Nemco Utilities Ltd,CR409319,One Leisure St Neots,Gen Building Mtce - Planned,304
http://statistics.data.gov.uk/id/local-authority/12UE,Huntingdonshire District Council,24/06/2010,59993,854.09,Pipedreems Ltd,CR480645,One Leisure St Neots,Sports Equipment,524
http://statistics.data.gov.uk/id/local-authority/12UE,Huntingdonshire District Council,17/06/2010,59986,631.92,Rapid Platforms Limited,CR478933,One Leisure St Neots,Plant & Equipment Maintenance,380
http://statistics.data.gov.uk/id/local-authority/12UE,Huntingdonshire District Council,03/06/2010,58218,"2,937.50",Semco Signs Ltd,CR083202,One Leisure St Neots,Gen Building Mtce - Planned,304
http://statistics.data.gov.uk/id/local-authority/12UE,Huntingdonshire District Council,17/06/2010,60252,"5,822.63",Swalec,CR407130,One Leisure St Neots,Electricity,420
http://statistics.data.gov.uk/id/local-authority/12UE,Huntingdonshire District Council,24/06/2010,60053,922.3,Siemens Financial Services Ltd,CR032410,Operations Mgt Units,Equipment Finance Leases,502
http://statistics.data.gov.uk/id/local-authority/12UE,Huntingdonshire District Council,10/06/2010,59111,"1,228.00",Tecalemit Garage Equipment Co Ltd,CR477683,Operations Mgt Units,Equipment Maintenance,511
http://statistics.data.gov.uk/id/local-authority/12UE,Huntingdonshire District Council,10/06/2010,59495,"7,818.33",Elysian Associates Ltd,CR411944,Other Expenditure Other,Consultants Other,711
http://statistics.data.gov.uk/id/local-authority/12UE,Huntingdonshire District Council,03/06/2010,57894,"1,039.88",Glomac Engineering Ltd,CR403119,Parks & Open Spaces,Sitework,359
http://statistics.data.gov.uk/id/local-authority/12UE,Huntingdonshire District Council,03/06/2010,57883,"5,278.23",John Henry & Sons,CR031967,Parks & Open Spaces,Sitework,359
http://statistics.data.gov.uk/id/local-authority/12UE,Huntingdonshire District Council,10/06/2010,58963,553.18,Lappset Uk Ltd,CR40244,Parks & Open Spaces,Playground Equipment,360
http://statistics.data.gov.uk/id/local-authority/12UE,Huntingdonshire District Council,10/06/2010,58933,"4,519.65",Wicksteed Leisure Ltd,CR028997,Parks Equipment Capital,Playground Equipment,360
http://statistics.data.gov.uk/id/local-authority/12UE,Huntingdonshire District Council,03/06/2010,59498,"1,322.05",British Gas Business,CR416363,Pathfinder House Site,Gas,421
http://statistics.data.gov.uk/id/local-authority/12UE,Huntingdonshire District Council,24/06/2010,61009,592.09,Chubb Electronic Security,CR029346,Pathfinder House Site,Gen Building Mtce - Planned,304
http://statistics.data.gov.uk/id/local-authority/12UE,Huntingdonshire District Council,10/06/2010,59543,592.2,Ecocleen Services Limited,CR406985,Pathfinder House Site,Building Cleaning External,441
http://statistics.data.gov.uk/id/local-authority/12UE,Huntingdonshire District Council,24/06/2010,60518,"2,440.15",Ecocleen Services Limited,CR406985,Pathfinder House Site,Gen Building Mtce - Planned,304
http://statistics.data.gov.uk/id/local-authority/12UE,Huntingdonshire District Council,24/06/2010,60519,"2,440.15",Ecocleen Services Limited,CR406985,Pathfinder House Site,Gen Building Mtce - Planned,304
http://statistics.data.gov.uk/id/local-authority/12UE,Huntingdonshire District Council,10/06/2010,58709,507.61,Edf Energy Customer Field Services,CR477611,Pathfinder House Site,Service Charges,412
http://statistics.data.gov.uk/id/local-authority/12UE,Huntingdonshire District Council,10/06/2010,58917,613.35,Flora Tec Ltd,CR028191,Pathfinder House Site,Gen Building Mtce - Responsive,303
http://statistics.data.gov.uk/id/local-authority/12UE,Huntingdonshire District Council,10/06/2010,58918,567.53,Flora Tec Ltd,CR028191,Pathfinder House Site,Plants And Seeds,556
http://statistics.data.gov.uk/id/local-authority/12UE,Huntingdonshire District Council,03/06/2010,58480,630.51,Maskearaid Ind Supplies,CR033423,Pathfinder House Site,Cleaning Materials,443
http://statistics.data.gov.uk/id/local-authority/12UE,Huntingdonshire District Council,24/06/2010,60021,731.8,Maskearaid Ind Supplies,CR033423,Pathfinder House Site,Cleaning Materials,443
http://statistics.data.gov.uk/id/local-authority/12UE,Huntingdonshire District Council,17/06/2010,60243,"10,471.49",Swalec,CR407130,Pathfinder House Site,Electricity,420
http://statistics.data.gov.uk/id/local-authority/12UE,Huntingdonshire District Council,10/06/2010,60086,894.49,Swalec,CR407130,Pathfinder House Site,Gas,421
http://statistics.data.gov.uk/id/local-authority/12UE,Huntingdonshire District Council,17/06/2010,60087,"1,026.85",Swalec,CR407130,Pathfinder House Site,Gas,421
http://statistics.data.gov.uk/id/local-authority/12UE,Huntingdonshire District Council,03/06/2010,59477,638.89,Swalec,CR407130,Pavillions,Electricity,420
http://statistics.data.gov.uk/id/local-authority/12UE,Huntingdonshire District Council,17/06/2010,60186,219.84,Shell Uk Ltd,CR028192,Paxton Pits,Petrol,614
http://statistics.data.gov.uk/id/local-authority/12UE,Huntingdonshire District Council,17/06/2010,57603,"8,905.91",Ihs (Global)  Limited,CR416521,Planning M U'S,Software,206
http://statistics.data.gov.uk/id/local-authority/12UE,Huntingdonshire District Council,17/06/2010,60092,"1,047.05",Rtpi Conferences,CR417107,Planning M U'S,Training - Professional,130
http://statistics.data.gov.uk/id/local-authority/12UE,Huntingdonshire District Council,03/06/2010,58614,616.88,The Oyster Partnership,CR480450,Planning M U'S,Consultants Other,711
http://statistics.data.gov.uk/id/local-authority/12UE,Huntingdonshire District Council,10/06/2010,58703,688.79,The Oyster Partnership,CR480450,Planning M U'S,Consultants Other,711
http://statistics.data.gov.uk/id/local-authority/12UE,Huntingdonshire District Council,17/06/2010,59520,622.87,The Oyster Partnership,CR480450,Planning M U'S,Consultants Other,711
http://statistics.data.gov.uk/id/local-authority/12UE,Huntingdonshire District Council,24/06/2010,60463,616.88,The Oyster Partnership,CR480450,Planning M U'S,Consultants Other,711
http://statistics.data.gov.uk/id/local-authority/12UE,Huntingdonshire District Council,17/06/2010,59410,"2,018.45",B. S. Graves Electrical Ltd,CR000363,Property Development And Mgt,Gen Building Mtce - Responsive,303
http://statistics.data.gov.uk/id/local-authority/12UE,Huntingdonshire District Council,03/06/2010,58980,"1,233.75",D H Barford & Co,CR019223,Property Development And Mgt,Consultants Other,711
http://statistics.data.gov.uk/id/local-authority/12UE,Huntingdonshire District Council,24/06/2010,59475,"1,819.21",Omega Red Group,CR411029,Property Development And Mgt,Gen Building Mtce - Responsive,303
http://statistics.data.gov.uk/id/local-authority/12UE,Huntingdonshire District Council,03/06/2010,57926,705,Promain  Uk Ltd,CR082922,Property Development And Mgt,Gen Building Mtce - Responsive,303
http://statistics.data.gov.uk/id/local-authority/12UE,Huntingdonshire District Council,03/06/2010,58143,675.63,Reed Business Information Ltd,CR401020,Property Development And Mgt,Advertising/Promoting Services,255
http://statistics.data.gov.uk/id/local-authority/12UE,Huntingdonshire District Council,10/06/2010,58186,"3,754.71",Richard Herrmann Assoc Ltd,CR403316,Property Development And Mgt,Gen Building Mtce - Responsive,303
http://statistics.data.gov.uk/id/local-authority/12UE,Huntingdonshire District Council,10/06/2010,58910,"2,642.89",Information Publications Ltd,CR415915,Public Accountability,Advertising/Promoting Services,255
http://statistics.data.gov.uk/id/local-authority/12UE,Huntingdonshire District Council,10/06/2010,58910,"2,467.50",Information Publications Ltd,CR415915,Public Accountability,Artwork And Design,222
http://statistics.data.gov.uk/id/local-authority/12UE,Huntingdonshire District Council,10/06/2010,58910,12.93,Information Publications Ltd,CR415915,Public Accountability,Photographic Services,739
http://statistics.data.gov.uk/id/local-authority/12UE,Huntingdonshire District Council,28/06/2010,59128,"7,378.97",Longsands College,CR416026,Public Accountability,Printing (External),220
http://statistics.data.gov.uk/id/local-authority/12UE,Huntingdonshire District Council,28/06/2010,61454,"-7,378.97",Longsands College,CR416026,Public Accountability,Printing (External),220
http://statistics.data.gov.uk/id/local-authority/12UE,Huntingdonshire District Council,24/06/2010,59872,"4,602.71",Royal Mail,CR027083,Public Accountability,Postage,231
http://statistics.data.gov.uk/id/local-authority/12UE,Huntingdonshire District Council,24/06/2010,60034,778.3,Anglian Water,CR000071,Public Conveniences,Sewerage,433
http://statistics.data.gov.uk/id/local-authority/12UE,Huntingdonshire District Council,24/06/2010,60034,686.84,Anglian Water,CR000071,Public Conveniences,Water,432
http://statistics.data.gov.uk/id/local-authority/12UE,Huntingdonshire District Council,24/06/2010,59458,763.75,Beebys Limited,CR415822,Public Conveniences,Gen Building Mtce - Planned,304
http://statistics.data.gov.uk/id/local-authority/12UE,Huntingdonshire District Council,24/06/2010,59460,763.75,Beebys Limited,CR415822,Public Conveniences,Gen Building Mtce - Planned,304
http://statistics.data.gov.uk/id/local-authority/12UE,Huntingdonshire District Council,03/06/2010,59613,572.96,Beebys Limited,CR415822,Public Conveniences,Gen Building Mtce - Planned,304
http://statistics.data.gov.uk/id/local-authority/12UE,Huntingdonshire District Council,24/06/2010,59458,"1,639.52",Beebys Limited,CR415822,Public Conveniences,Gen Building Mtce - Responsive,303
http://statistics.data.gov.uk/id/local-authority/12UE,Huntingdonshire District Council,03/06/2010,58481,"38,489.48",Ssi Schaefer Ltd,CR407190,Recycling Equipment Capital,Recycling Bins,525
http://statistics.data.gov.uk/id/local-authority/12UE,Huntingdonshire District Council,24/06/2010,60048,"1,821.84",15 New Bridge Street,CR480013,Revenue Services Mus,Legal Fees And Consultancy,729
http://statistics.data.gov.uk/id/local-authority/12UE,Huntingdonshire District Council,10/06/2010,58634,734.38,Acs Ltd,CR480430,Revenue Services Mus,Training - Other,136
http://statistics.data.gov.uk/id/local-authority/12UE,Huntingdonshire District Council,03/06/2010,58713,139.24,Cintra Ltd,CR028441,Revenue Services Mus,Translation Services,766
http://statistics.data.gov.uk/id/local-authority/12UE,Huntingdonshire District Council,10/06/2010,58507,593.64,Royal Mail,CR027083,Revenue Services Mus,Postage,231
http://statistics.data.gov.uk/id/local-authority/12UE,Huntingdonshire District Council,03/06/2010,58928,918.4,T N T Post Midlands Ltd,CR479965,Revenue Services Mus,Postage,231
http://statistics.data.gov.uk/id/local-authority/12UE,Huntingdonshire District Council,10/06/2010,58958,679.86,T N T Post Midlands Ltd,CR479965,Revenue Services Mus,Postage,231
http://statistics.data.gov.uk/id/local-authority/12UE,Huntingdonshire District Council,24/06/2010,60492,"2,269.09",T N T Post Midlands Ltd,CR479965,Revenue Services Mus,Postage,231
http://statistics.data.gov.uk/id/local-authority/12UE,Huntingdonshire District Council,24/06/2010,60493,308.53,T N T Post Midlands Ltd,CR479965,Revenue Services Mus,Postage,231
http://statistics.data.gov.uk/id/local-authority/12UE,Huntingdonshire District Council,03/06/2010,59482,528.75,@Uk Plc,CR480042,Software Capital,Software,206
http://statistics.data.gov.uk/id/local-authority/12UE,Huntingdonshire District Council,24/06/2010,60716,532.98,Dell Computer Corporation,CR408320,Software Capital,P C'S And Accessories,201
http://statistics.data.gov.uk/id/local-authority/12UE,Huntingdonshire District Council,10/06/2010,58691,"1,813.03",Isc Networks Ltd,CR004345,Software Capital,Other I T Hardware,203
http://statistics.data.gov.uk/id/local-authority/12UE,Huntingdonshire District Council,03/06/2010,493231,1086.88,Northgate Public Sector Ltd,CR409869,Software Capital,Consultants Other,711
http://statistics.data.gov.uk/id/local-authority/12UE,Huntingdonshire District Council,24/06/2010,494336,91,Alfa Tail Lifts Ltd,CR402111,Street Cleaning,Vehicle Maintenance,619
http://statistics.data.gov.uk/id/local-authority/12UE,Huntingdonshire District Council,17/06/2010,59820,583.93,Autoelec Cambs,CR480035,Street Cleaning,Vehicle Maintenance,619
http://statistics.data.gov.uk/id/local-authority/12UE,Huntingdonshire District Council,24/06/2010,60192,436.87,Euramka Promotions Ltd,CR001864,Street Cleaning,Diesel,615
http://statistics.data.gov.uk/id/local-authority/12UE,Huntingdonshire District Council,03/06/2010,58271,1332.9,Johnston Engineering Ltd,CR029831,Street Cleaning,Vehicle Maintenance,619
http://statistics.data.gov.uk/id/local-authority/12UE,Huntingdonshire District Council,10/06/2010,59431,808.02,Marshall Motor Group,CR009641,Street Cleaning,Vehicle Maintenance,619
http://statistics.data.gov.uk/id/local-authority/12UE,Huntingdonshire District Council,24/06/2010,60057,587.5,Nomix Enviro,CR002353,Street Cleaning,Equipment Maintenance,511
http://statistics.data.gov.uk/id/local-authority/12UE,Huntingdonshire District Council,17/06/2010,494029,200,Post Office  Ltd,CR008902,Street Cleaning,Vehicle Licence,609
http://statistics.data.gov.uk/id/local-authority/12UE,Huntingdonshire District Council,03/06/2010,58555,"2,617.25",Qubic Recruitment Solutions,CR416827,Street Cleaning,Hired Staff,100
http://statistics.data.gov.uk/id/local-authority/12UE,Huntingdonshire District Council,10/06/2010,58964,"2,488.67",Qubic Recruitment Solutions,CR416827,Street Cleaning,Hired Staff,100
http://statistics.data.gov.uk/id/local-authority/12UE,Huntingdonshire District Council,17/06/2010,59893,"2,272.92",Qubic Recruitment Solutions,CR416827,Street Cleaning,Hired Staff,100
http://statistics.data.gov.uk/id/local-authority/12UE,Huntingdonshire District Council,24/06/2010,60421,"-3,441.39",J Breheny Contractors Ltd,CR000314,Street Naming,Signs Erecting & Removal,361
http://statistics.data.gov.uk/id/local-authority/12UE,Huntingdonshire District Council,03/06/2010,58468,"19,500.56",Cambridgeshire County Council,CR006678,Trade Waste,Waste Disposal,763
http://statistics.data.gov.uk/id/local-authority/12UE,Huntingdonshire District Council,24/06/2010,59931,"3,217.09",Gelpack Excelsior Limited,CR002966,Trade Waste,Refuse Sacks,552
http://statistics.data.gov.uk/id/local-authority/12UE,Huntingdonshire District Council,17/06/2010,58714,"1,114.32",Mott Macdonald,CR409762,Watercourse Capital,Sitework,359
